lending/lending_fUSD_20240604
["ID","MTS","AMOUNT","RATE_DAILY","PERIOD"]
[328524051,1717486250238,-151.0,0.00029999,7]
[328524052,1717486250248,-875.82,0.00029999,6]
[328524053,1717486250258,-875.82,0.00029999,6]
[328524054,1717486250268,-875.82,0.00029999,6]
[328524055,1717486250278,-500.0,0.00029999,6]
[328524056,1717486250288,-875.82,0.00029999,6]
[328524057,1717486250298,-875.82,0.00029999,6]
[328524058,1717486250308,-500.0,0.00029999,6]
[328524059,1717486250318,-875.82,0.00029999,6]
[328524060,1717486250328,-500.0,0.00029999,6]
[328524061,1717486250338,-875.82,0.00029999,6]
[328524062,1717486250347,-500.0,0.00029999,6]
[328524063,1717486250357,-875.82,0.00029999,6]
[328524064,1717486250366,-500.0,0.00029999,6]
[328524065,1717486250376,-500.0,0.00029999,6]
[328524066,1717486250386,-500.0,0.00029999,6]
[328524067,1717486250396,-609.62,0.00029999,6]
[328524068,1717486250405,-500.0,0.00029999,6]
[328524069,1717486250415,-500.0,0.00029999,6]
[328524070,1717486250424,-500.0,0.00029999,6]
[328524071,1717486250434,-500.0,0.00029999,6]
[328524072,1717486250444,-500.0,0.00029999,6]
[328524073,1717486250455,-500.0,0.00029999,6]
[328524074,1717486250464,-361.59941672,0.00029999,6]
[328524075,1717486250473,-1623.27,0.00029999,6]
[328524076,1717486250482,-1623.27,0.00029999,6]
[328524077,1717486250491,-1623.27,0.00029999,6]
[328524078,1717486250500,-1623.27,0.00029999,6]
[328524079,1717486250508,-1623.27,0.00029999,6]
[328524080,1717486250516,-1623.27,0.00029999,6]
[328524081,1717486250524,-1623.27,0.00029999,6]
[328524082,1717486250531,-1623.27,0.00029999,6]
[328524083,1717486250540,-1623.44683985,0.00029999,6]
[328524084,1717486250549,-3455.44,0.00029999,6]
[328524085,1717486250556,-3455.44,0.00029999,6]
[328524086,1717486250564,-3455.44,0.00029999,6]
[328524087,1717486250572,-3455.44,0.00029999,6]
[328524088,1717486250579,-3455.44,0.00029999,6]
[328524089,1717486250586,-151.0,0.00029999,7]
[328524090,1717486250594,-552.41,0.00029999,6]
[328524091,1717486250601,-552.41,0.00029999,6]
[328524092,1717486250609,-552.41,0.00029999,6]
[328524093,1717486250617,-552.41,0.00029999,6]
[328524094,1717486250625,-552.41,0.00029999,6]
[328524095,1717486250631,-552.41,0.00029999,6]
[328524096,1717486250639,-552.41,0.00029999,6]
[328524097,1717486250645,-552.41,0.00029999,6]
[328524098,1717486250656,-552.46695749,0.00029999,6]
[328524099,1717486250665,-448.96863612,0.00029999,2]
[328524100,1717486250677,-1605.0184315,0.00029999,14]
[328524101,1717486250685,-213.05221993,0.0003,5]
[328524102,1717486250693,-695078.2152545,0.0003,2]
[328524103,1717486250712,-500.0,0.00029589,2]
[328524104,1717486250719,-290.75767697,0.00029998,2]
[328524105,1717486250725,-6955.43432312,0.0003,2]
[328524106,1717486250734,-3041.00171297,0.0003,2]
[328524107,1717486250752,-10431.17380775,0.0003,2]
[328524108,1717486250911,-207.23462602,0.00017259,2]
[328524109,1717486250922,-226.54621656,0.000201,2]
[328524110,1717486250932,-401.46965742,0.000249,2]
[328524122,1717486565177,-162.470349,0.00013888,2]
[328524123,1717486565199,-4610.3336856,0.00013889,2]
[328524124,1717486565221,-154.24851528,0.0001391,2]
[328524125,1717486565244,-1143.03871675,0.0001391,2]
[328524126,1717486565266,-150.0,0.00013999,2]
[328524127,1717486565290,-993779.90873337,0.00014,2]
[328524129,1717487022287,-713.58268017,0.00011715,2]
[328524130,1717487022309,-452.96950587,0.00011716,2]
[328524131,1717487022329,-1336.43046082,0.00011716,2]
[328524132,1717487022349,-185.82854866,0.00011717,2]
[328524133,1717487022371,-7389.59503307,0.00011717,2]
[328524134,1717487022391,-155.0,0.00011718,2]
[328524135,1717487022412,-162.470349,0.00011718,2]
[328524136,1717487022432,-625.17462304,0.00011719,2]
[328524137,1717487022452,-778.31,0.0001172,2]
[328524138,1717487022473,-29739.52767735,0.0001245,2]
[328524139,1717487022493,-500.0,0.00013242,2]
[328524140,1717487022513,-1298.78853938,0.00013298,2]
[328524141,1717487022538,-246.92,0.00013398,2]
[328524142,1717487022559,-2610.27911609,0.0001372,2]
[328524143,1717487022579,-2059.36,0.00013862,2]
[328524144,1717487022598,-1053.9,0.0001389,3]
[328524145,1717487022618,-150.0,0.00013899,2]
[328524146,1717487022638,-150.0,0.00013899,2]
[328524147,1717487022659,-291.0031,0.000139,2]
[328524148,1717487022678,-195.2752,0.000139,2]
[328524149,1717487022699,-7500.0,0.000139,2]
[328524150,1717487022719,-752.18004677,0.000139,2]
[328524151,1717487022739,-2500.0,0.000139,2]
[328524152,1717487022759,-162.2713,0.000139,2]
[328524153,1717487022779,-316.49581438,0.000139,2]
[328524154,1717487022802,-444.65479208,0.000139,2]
[328524155,1717487022821,-469.87101766,0.000139,2]
[328524156,1717487022841,-191.22,0.00013952,2]
[328524157,1717487022862,-778.31,0.00013984,2]
[328524158,1717487022882,-152.01,0.0001399,2]
[328524159,1717487022906,-152.01,0.0001399,2]
[328524160,1717487022926,-152.01,0.0001399,2]
[328524161,1717487022947,-152.01,0.0001399,2]
[328524162,1717487022967,-152.01,0.0001399,2]
[328524163,1717487022988,-152.01,0.0001399,2]
[328524164,1717487023008,-152.01,0.0001399,2]
[328524165,1717487023028,-1679.49372013,0.0001399,2]
[328524166,1717487023050,-182.73,0.0001399,3]
[328524167,1717487023069,-548.21,0.0001399,3]
[328524168,1717487023088,-517.03487054,0.00013998,2]
[328524169,1717487023109,-447.95488763,0.00013998,2]
[328524170,1717487023130,-337.62197281,0.00013998,2]
[328524171,1717487023151,-546.532745,0.00013998,2]
[328524172,1717487023170,-1389.72657896,0.00013998,2]
[328524173,1717487023189,-999.99,0.00013998,2]
[328524174,1717487023210,-545.13448433,0.00013998,2]
[328524175,1717487023232,-3184.01,0.00013998,2]
[328524176,1717487023252,-2191.87131538,0.00013998,2]
[328524177,1717487023275,-410.81529252,0.00013998,2]
[328524178,1717487023299,-10527.4720348,0.00013998,2]
[328524179,1717487023319,-4755.14039967,0.00013998,2]
[328524180,1717487023340,-2367.97259469,0.00013998,2]
[328524181,1717487023362,-307.06708735,0.00013998,2]
[328524182,1717487023384,-855.65609833,0.00013998,2]
[328524183,1717487023407,-1620.95194827,0.00013999,2]
[328524184,1717487023429,-902311.12616525,0.00014,2]
[328524185,1717487113552,5000.0,0.00031,30]
[328524200,1717487404559,1844.54,0.00031,90]
[328524220,1717487431713,-452.96950587,0.00010454,2]
[328524221,1717487431722,-112.99049413,0.00010455,2]
[328524225,1717487431879,-506.27217604,0.00010455,2]
[328524260,1717487432431,-94.32001,0.00010455,2]
[328524262,1717487432440,-8347.42984617,0.00010456,2]
[328524264,1717487432449,-152.55,0.00010557,2]
[328524265,1717487432458,-677.947979,0.00012129,2]
[328524267,1717487432468,-164.06481566,0.0001219,2]
[328524269,1717487432477,-1834.0,0.00012289,2]
[328524271,1717487432486,-150.0,0.00012452,2]
[328524273,1717487432495,-1091.66738669,0.00012457,2]
[328524275,1717487432503,-161.04,0.00012768,2]
[328524277,1717487432513,-161.04,0.00012779,2]
[328524279,1717487432522,-161.04,0.00012789,2]
[328524281,1717487432531,-161.04,0.000128,2]
[328524283,1717487432540,-161.04,0.0001281,2]
[328524285,1717487432549,-161.04,0.00012821,2]
[328524287,1717487432560,-161.04,0.00012832,2]
[328524289,1717487432569,-1895.25,0.00012835,2]
[328524291,1717487432577,-999.99,0.00012835,2]
[328524293,1717487432587,-250.0,0.00012899,2]
[328524295,1717487432596,-3153.91,0.00013057,2]
[328524297,1717487432605,-1249.46,0.00013258,2]
[328524299,1717487432614,-7994.86,0.00013272,2]
[328524301,1717487432623,-294.53,0.00013452,2]
[328524303,1717487432632,-416.59,0.0001363,2]
[328524305,1717487432641,-499.99,0.0001363,2]
[328524307,1717487432652,-210.0,0.00013697,2]
[328524308,1717487432660,-150.99,0.00013699,2]
[328524310,1717487432669,-3092.04,0.00013699,2]
[328524312,1717487432678,-555.69,0.00013699,2]
[328524314,1717487432686,-23900.0,0.00013777,2]
[328524316,1717487432696,-150.99,0.00013863,2]
[328524318,1717487432705,-3617.28,0.00013863,2]
[328524320,1717487432715,-224.99,0.00013863,2]
[328524322,1717487432724,-150.0,0.00013863,2]
[328524324,1717487432733,-410.86923062,0.000139,2]
[328524326,1717487432742,-7500.0,0.000139,2]
[328524328,1717487432751,-705.4557,0.000139,2]
[328524330,1717487432761,-200.86900762,0.000139,2]
[328524332,1717487432770,-2500.0,0.000139,2]
[328524334,1717487432779,-316.93334736,0.000139,2]
[328524336,1717487432788,-374.56961686,0.000139,2]
[328524338,1717487432797,-296.43652806,0.000139,2]
[328524340,1717487432807,-365.46,0.0001399,3]
[328524341,1717487432816,-165.17737501,0.0001399,2]
[328524343,1717487432825,-165.17737501,0.0001399,2]
[328524345,1717487432834,-165.17737501,0.0001399,2]
[328524347,1717487432843,-152.01,0.0001399,2]
[328524349,1717487432853,-152.01,0.0001399,2]
[328524351,1717487432862,-3348.00292037,0.00013998,2]
[328524353,1717487432871,-248.27943984,0.00013998,2]
[328524355,1717487432880,-200.69549615,0.00013998,2]
[328524357,1717487432890,-155.97258321,0.00013999,2]
[328524359,1717487432901,-628.80425464,0.00013999,2]
[328524361,1717487432910,-1021825.72128211,0.00014,2]
[328524364,1717487432922,-716.59388063,0.00014,2]
[328524366,1717487432934,-2657.0803135,0.00014,2]
[328524368,1717487432945,-445.35842976,0.00014,2]
[328524389,1717487437659,-264.24,0.000139,2]
[328524390,1717487437772,-1263.68575248,0.000139,2]
[328524391,1717487437785,-3466.97106609,0.000139,2]
[328524392,1717487437828,-2505.10318143,0.000139,2]
[328524393,1717487437838,-15419.64790286,0.00014,2]
[328524394,1717487437851,-14560.0,0.00014,2]
[328524395,1717487437862,-17349.750773,0.00014,2]
[328524414,1717487440858,-173.58658896,0.00010355,2]
[328524415,1717487440868,-4004.08534172,0.00014,2]
[328524479,1717487442751,-830.31929531,0.00014,2]
[328524484,1717487442807,-50833.54179118,0.00014,2]
[328524485,1717487442820,-11918.29737719,0.00014,2]
[328524486,1717487442831,-1641.49457084,0.00014,2]
[328524487,1717487442842,-1538.76083681,0.00014,2]
[328524488,1717487442853,-754.3240493,0.00014,2]
[328524489,1717487443022,-6491.42000583,0.00014,2]
[328524490,1717487443035,-851.16470972,0.00014,2]
[328524491,1717487443081,-1113.98315628,0.00014,2]
[328524532,1717487446034,-173.58658895,0.00012668,2]
[328524533,1717487446049,-67994.48421105,0.00014,2]
[328524534,1717487446061,-7121.5,0.00014,2]
[328524535,1717487446081,-713.58268017,0.00013999,2]
[328524536,1717487446090,-975.27892477,0.00014,2]
[328524537,1717487507300,1980.5731504,0.0003,120]
[328524539,1717487595385,-713.58268017,0.00013899,2]
[328524540,1717487595407,-316.93334735,0.000139,2]
[328524541,1717487595429,-7500.0,0.000139,2]
[328524542,1717487595451,-2500.0,0.000139,2]
[328524543,1717487595473,-430.47069148,0.00013998,2]
[328524544,1717487595495,-17708.013281,0.00013999,2]
[328524561,1717488547351,-819.95,0.00011802,2]
[328524562,1717488547375,-250.0,0.00013026,2]
[328524563,1717488547397,-1589.67,0.00013058,2]
[328524564,1717488547424,-261.46,0.00013069,2]
[328524565,1717488547446,-200.0,0.00013103,2]
[328524566,1717488547472,-261.46,0.00013105,2]
[328524567,1717488547499,-261.46,0.00013141,2]
[328524568,1717488547525,-261.46,0.00013177,2]
[328524569,1717488547548,-150.0,0.00013211,2]
[328524570,1717488547571,-29.54,0.00013212,2]
[328524583,1717488632005,-444.06,0.00010775,2]
[328524584,1717488632062,-334.89,0.00010775,2]
[328524585,1717488632072,-53.38066841,0.00012575,2]
[328524586,1717488632175,-96.61933159,0.00012575,2]
[328524587,1717488632185,-250.0,0.00012644,2]
[328524588,1717488632194,-8594.6,0.00012718,2]
[328524589,1717488632203,-778.95,0.00013039,2]
[328524590,1717488632213,-23870.46,0.00013212,2]
[328524591,1717488632222,-261.46,0.00013213,2]
[328524592,1717488632232,-261.46,0.00013248,2]
[328524593,1717488632241,-261.46,0.00013284,2]
[328524594,1717488632250,-261.46,0.0001332,2]
[328524595,1717488632260,-166.71,0.00013337,2]
[328524596,1717488632269,-23413.84,0.00013337,2]
[328524597,1717488632278,-261.46,0.00013356,2]
[328524598,1717488632287,-261.46,0.00013392,2]
[328524599,1717488632297,-261.46,0.00013428,2]
[328524600,1717488632310,-185.55,0.00013453,2]
[328524601,1717488632319,-261.46,0.00013463,2]
[328524602,1717488632328,-261.46,0.00013499,2]
[328524603,1717488632338,-261.46,0.00013535,2]
[328524604,1717488632347,-2331.91,0.0001357,2]
[328524605,1717488632356,-261.46,0.00013571,2]
[328524606,1717488632366,-261.46,0.00013607,2]
[328524607,1717488632375,-261.46,0.00013643,2]
[328524608,1717488632384,-261.46,0.00013678,2]
[328524609,1717488632394,-2751.0,0.00013699,2]
[328524610,1717488632405,-200.0,0.00013699,2]
[328524611,1717488632414,-444.55,0.00013699,2]
[328524612,1717488632423,-2702.11,0.00013699,2]
[328524613,1717488632433,-261.46,0.00013714,2]
[328524614,1717488632447,-192.15,0.00013722,2]
[328524615,1717488632457,-7592.43,0.00013722,2]
[328524616,1717488632466,-261.46,0.0001375,2]
[328524617,1717488632475,-205.1079,0.00013798,2]
[328524618,1717488632486,-1646.45574665,0.00013799,2]
[328524619,1717488632495,-327.74841477,0.00013799,2]
[328524620,1717488632504,-316.93334735,0.00013799,2]
[328524621,1717488632513,-152.61,0.00013889,2]
[328524622,1717488632524,-169646.18860367,0.00013898,2]
[328524623,1717488632536,-701.02004,0.00013898,2]
[328524624,1717488632548,-3836.3329704,0.00013898,2]
[328524625,1717488632560,-57202.6319067,0.00013898,2]
[328524626,1717488632575,-1346.78709982,0.00013898,2]
[328524627,1717488632586,-374.10436896,0.00013898,2]
[328524628,1717488632598,-945.02971513,0.00013898,2]
[328524629,1717488632613,-318.64482262,0.00013898,2]
[328524630,1717488632653,-322.14253501,0.00013898,2]
[328524631,1717488632669,-8755.89557217,0.00013898,2]
[328524634,1717488637960,-300594.79309799,0.00013898,2]
[328524635,1717488637970,-1490.6304,0.00013899,2]
[328524636,1717488637979,-500.0,0.00013899,2]
[328524637,1717488637989,-5229.3433,0.00013899,2]
[328524638,1717488637998,-221267.7156,0.00013899,2]
[328524639,1717488638007,-1646.45574665,0.00013899,2]
[328524640,1717488638017,-181.44227731,0.00013899,2]
[328524641,1717488638026,-181.44227731,0.000139,2]
[328524642,1717488638035,-1047.7854904,0.000139,2]
[328524643,1717488638045,-197.62435204,0.000139,2]
[328524644,1717488638054,-382.13509686,0.00013917,2]
[328524645,1717488638063,-369.197667,0.00013973,2]
[328524646,1717488638073,-779.69040502,0.00013998,2]
[328524647,1717488638082,-607.82034178,0.00013999,2]
[328524648,1717488638092,-376309.70627856,0.00013999,2]
[328524649,1717488638112,-2329.41991002,0.00013999,2]
[328524650,1717488638127,-4080.81912054,0.00013999,2]
[328524651,1717488638149,-5316.00115267,0.00013999,2]
[328524652,1717488638162,-1405.49514613,0.00013999,2]
[328524653,1717488638178,-1310.075095,0.00013999,2]
[328524654,1717488638189,-9432.06973771,0.00013999,2]
[328524655,1717488638261,-148355.26942213,0.00013999,2]
[328524656,1717488638271,-1656284.16002552,0.00014,2]
[328524657,1717488638282,-371.59143874,0.00014,2]
[328524672,1717488640649,-7345.87684092,0.00014,2]
[328524673,1717488640761,-3207.735,0.00014,2]
[328524674,1717488641482,-618.63300473,0.00014,2]
[328524675,1717488641494,-9374.3901262,0.00014,2]
[328524676,1717488641532,-597.07292339,0.00014,2]
[328524677,1717488641543,-308.94361421,0.00014,2]
[328524678,1717488641592,-128477.25226292,0.00014,2]
[328524679,1717488641603,-2837.74696614,0.00014,2]
[328524680,1717488641706,-1095.71796164,0.00014,2]
[328524681,1717488641718,-365.96685169,0.00014,2]
[328524693,1717488643126,-625264.8255023,0.00014,2]
[328524694,1717488643137,-578.18178971,0.00014,2]
[328524695,1717488643146,-3000.0,0.00014,2]
[328524696,1717488643157,-299.99,0.0001401,2]
[328524697,1717488643166,-3701.554,0.0001401,2]
[328524698,1717488643175,-3712.615,0.0001401,2]
[328524699,1717488643188,-3691.684,0.0001401,2]
[328524700,1717488643197,-3723.567,0.0001401,2]
[328524701,1717488643207,-3733.898,0.0001401,2]
[328524702,1717488643216,-172.27,0.00014068,2]
[328524703,1717488643226,-444.55,0.00014384,2]
[328524704,1717488643235,-10281.0,0.00014458,2]
[328524705,1717488643244,-210.0,0.00014532,2]
[328524706,1717488643254,-166.71,0.0001467,2]
[328524707,1717488643263,-369.197667,0.00014795,2]
[328524708,1717488643273,-6970.92307333,0.00015,2]
[328524709,1717488643283,-800.0,0.00015,2]
[328524710,1717488643293,-444.55,0.00015068,2]
[328524711,1717488643302,-300.0,0.00015068,2]
[328524712,1717488643311,-778.95,0.00015303,2]
[328524713,1717488643321,-1047.78549032,0.00015355,2]
[328524714,1717488643331,-8594.6,0.00015457,2]
[328524715,1717488643342,-1000.0,0.00015546,2]
[328524716,1717488643352,-1096.99,0.0001559,2]
[328524717,1717488643361,-1096.99,0.00015594,2]
[328524718,1717488643371,-1096.99,0.00015598,2]
[328524719,1717488643382,-1096.99,0.00015602,2]
[328524720,1717488643392,-1096.99,0.00015607,2]
[328524721,1717488643402,-1096.99,0.00015611,2]
[328524722,1717488643412,-1096.99,0.00015615,2]
[328524723,1717488643422,-369.197667,0.00015616,2]
[328524724,1717488643431,-1096.99,0.00015619,2]
[328524725,1717488643442,-1096.99,0.00015623,2]
[328524726,1717488643453,-1096.99,0.00015627,2]
[328524727,1717488643464,-1096.99,0.00015631,2]
[328524728,1717488643475,-1096.99,0.00015635,2]
[328524729,1717488643484,-1096.99,0.00015639,2]
[328524730,1717488643495,-1096.99,0.00015644,2]
[328524731,1717488643504,-1096.99,0.00015648,2]
[328524732,1717488643514,-1096.99,0.00015652,2]
[328524733,1717488643524,-1096.99,0.00015656,2]
[328524734,1717488643534,-1096.99,0.0001566,2]
[328524735,1717488643544,-1096.99,0.00015664,2]
[328524736,1717488643552,-1096.99,0.00015668,2]
[328524737,1717488643564,-444.55,0.00015753,2]
[328524738,1717488643573,-293.0,0.00015985,2]
[328524739,1717488643581,-166.71,0.00016004,2]
[328524740,1717488643592,-327.74841471,0.00016099,2]
[328524741,1717488643601,-9999.99,0.00016116,2]
[328524742,1717488643610,-162.1,0.00016438,2]
[328524743,1717488643619,-369.197667,0.00016438,2]
[328524744,1717488643628,-10041.64,0.00016438,2]
[328524745,1717488643637,-444.55,0.00016438,2]
[328524746,1717488643647,-300.0,0.00016438,2]
[328524747,1717488643657,-316.93334735,0.00016483,2]
[328524748,1717488643666,-1886.77782089,0.000165,2]
[328524749,1717488643675,-179.63,0.00016712,2]
[328524750,1717488643685,-1047.78549032,0.00016809,2]
[328524751,1717488643697,-172.27,0.00017053,2]
[328524752,1717488643707,-2847.28551005,0.00017225,2]
[328524753,1717488643716,-369.197667,0.0001726,2]
[328524754,1717488643726,-166.71,0.00017337,2]
[328524755,1717488643736,-1000.0,0.00017489,2]
[328524756,1717488643745,-778.95,0.00017567,2]
[328524757,1717488643755,-411.0,0.00017584,2]
[328524758,1717488643764,-162.1,0.00017671,2]
[328524759,1717488643773,-172.038,0.00017925,2]
[328524760,1717488643783,-172.038,0.00017932,2]
[328524761,1717488643792,-369.197667,0.00018082,2]
[328524762,1717488643803,-8594.6,0.00018197,2]
[328524763,1717488643812,-1047.78549032,0.00018264,2]
[328524764,1717488643821,-327.74841471,0.00018399,2]
[328524765,1717488643831,-5147.0,0.00018638,2]
[328524766,1717488643840,-1470.0,0.00018638,2]
[328524767,1717488643849,-290.0,0.00018638,2]
[328524768,1717488643858,-34155.053,0.00018638,2]
[328524770,1717488643868,-1064.0,0.00018638,2]
[328524772,1717488643876,-166.71,0.00018671,2]
[328524773,1717488643886,-298.388,0.00018717,2]
[328524774,1717488643895,-197.271,0.00018717,2]
[328524775,1717488643904,-150.24,0.00018717,2]
[328524776,1717488643915,-150.0,0.00018717,2]
[328524778,1717488643926,-152.441,0.00018717,2]
[328524780,1717488643938,-238.476,0.00018717,2]
[328524783,1717488643951,-150.347,0.00018717,2]
[328524785,1717488643964,-150.0,0.00018717,2]
[328524789,1717488643988,-977.0,0.00018717,2]
[328524791,1717488644003,-358.0,0.00018717,2]
[328524793,1717488644015,-441.0,0.00018717,2]
[328524796,1717488644027,-615.0,0.00018717,2]
[328524798,1717488644041,-1648.0,0.00018717,2]
[328524800,1717488644053,-1267.0,0.00018717,2]
[328524803,1717488644066,-1830.0,0.00018717,2]
[328524805,1717488644079,-446.0,0.00018717,2]
[328524808,1717488644091,-165.0,0.00018717,2]
[328524810,1717488644105,-808.0,0.00018717,2]
[328524812,1717488644117,-150.0,0.00018717,2]
[328524815,1717488644129,-2402.0,0.00018717,2]
[328524817,1717488644143,-216.0,0.00018717,2]
[328524819,1717488644156,-1407.523,0.00018717,2]
[328524822,1717488644167,-150.0,0.00018717,2]
[328524824,1717488644180,-2122.0,0.00018717,2]
[328524826,1717488644191,-3171.0,0.00018717,2]
[328524829,1717488644203,-545.0,0.00018717,2]
[328524831,1717488644218,-167.0,0.00018874,2]
[328524833,1717488644231,-174.6,0.00018874,2]
[328524836,1717488644245,-162.1,0.00018904,2]
[328524837,1717488644257,-369.197667,0.00018904,2]
[328524838,1717488644269,-3000.0,0.00019,2]
[328524839,1717488644280,-316.93334735,0.00019166,2]
[328524840,1717488644292,-314.55128291,0.00019178,2]
[328524841,1717488644302,-412.05649937,0.00019178,2]
[328524842,1717488644312,-362.5475127,0.00019178,2]
[328524843,1717488644323,-505.20189883,0.00019178,2]
[328524844,1717488644335,-500.0,0.00019178,2]
[328524845,1717488644346,-500.0,0.00019178,2]
[328524846,1717488644358,-232.15404637,0.00019178,2]
[328524847,1717488644369,-500.0,0.00019178,2]
[328524848,1717488644380,-319.74754324,0.00019178,2]
[328524849,1717488644392,-158.16601062,0.00019178,2]
[328524851,1717488644405,-313.78030558,0.00019178,2]
[328524853,1717488644418,-3608.0,0.00019178,2]
[328524856,1717488644431,-2702.11,0.00019178,2]
[328524858,1717488644444,-2065.88,0.000192,2]
[328524861,1717488644459,-1749.01,0.000192,2]
[328524863,1717488644470,-3761.0,0.000193,3]
[328524865,1717488644480,-576.0,0.00019342,2]
[328524867,1717488644492,-1000.0,0.00019433,2]
[328524869,1717488644502,-167.0,0.00019497,2]
[328524871,1717488644512,-699.0,0.000195,3]
[328524873,1717488644524,-835.85430625,0.000195,2]
[328524876,1717488644536,-248.0,0.00019695,15]
[328524878,1717488644548,-150.5,0.00019705,15]
[328524880,1717488644560,-150.5,0.00019715,15]
[328524882,1717488644572,-1047.78549032,0.00019718,2]
[328524884,1717488644583,-369.197667,0.00019726,2]
[328524887,1717488644593,-778.95,0.00019831,2]
[328524889,1717488644605,-863.88782738,0.0002,2]
[328524891,1717488644617,-1267.41790401,0.0002,2]
[328524893,1717488644630,-1560.7588113,0.0002,2]
[328524896,1717488644642,-167.47403612,0.0002,10]
[328524898,1717488644653,-166.71,0.00020005,2]
[328524900,1717488644664,-226.54621656,0.000201,2]
[328524902,1717488644674,-167.0,0.0002012,2]
[328524904,1717488644685,-162.1,0.00020137,2]
[328524906,1717488644695,-174.6,0.00020432,2]
[328524908,1717488644707,-369.197667,0.00020548,2]
[328524911,1717488644717,-327.74841471,0.00020699,2]
[328524913,1717488644729,-167.0,0.00020743,2]
[328524916,1717488644746,-750.0,0.00020797,2]
[328524918,1717488644758,-1047.78549032,0.00021173,2]
[328524921,1717488644774,-806.0,0.00021277,2]
[328524923,1717488644786,-167.0,0.00021366,2]
[328524925,1717488644797,-369.197667,0.0002137,2]
[328524928,1717488644808,-162.1,0.0002137,3]
[328524930,1717488644819,-1000.0,0.00021376,2]
[328524932,1717488644830,-254.163,0.00021638,2]
[328524934,1717488644841,-1064.0,0.00021638,2]
[328524936,1717488644852,-975.0,0.00021717,2]
[328524939,1717488644863,-441.0,0.00021717,2]
[328524941,1717488644874,-615.0,0.00021717,2]
[328524943,1717488644885,-1648.0,0.00021717,2]
[328524945,1717488644896,-1267.0,0.00021717,2]
[328524947,1717488644907,-1830.0,0.00021717,2]
[328524949,1717488644918,-150.0,0.00021717,2]
[328524952,1717488644935,-2122.0,0.00021717,2]
[328524954,1717488644945,-386.0,0.00021717,2]
[328524957,1717488644956,-316.93334735,0.0002185,2]
[328524959,1717488644967,-197.62435202,0.000219,2]
[328524961,1717488644978,-1494.57,0.00021918,2]
[328524963,1717488644990,-250.0,0.00021918,2]
[328524965,1717488645000,-168.24,0.00021918,2]
[328524968,1717488645011,-213.02,0.00021918,2]
[328524970,1717488645022,-174.6,0.0002199,2]
[328524972,1717488645033,-167.0,0.0002199,2]
[328524974,1717488645045,-778.95,0.00022094,2]
[328524976,1717488645056,-189944.72958463,0.000223,2]
[328524980,1717488645080,-4785.1163299,0.000223,2]
[328524983,1717488645103,-1463.71590666,0.000223,2]
[328524986,1717488645122,-5568.81446476,0.000223,2]
[328524989,1717488645135,-271.23280778,0.000223,2]
[328524991,1717488645148,-46123.39090627,0.000223,2]
[328524993,1717488645160,-162.1,0.00022603,3]
[328524995,1717488645172,-1047.78549032,0.00022627,2]
[328524997,1717488645182,-327.74841471,0.00023,2]
[328525000,1717488645193,-11731.0,0.00023,3]
[328525002,1717488645204,-1000.0,0.00023319,2]
[328525004,1717488645215,-1129.0,0.00023404,2]
[328525006,1717488645226,-11731.0,0.000237,5]
[328525008,1717488645238,-162.1,0.00023835,3]
[328525010,1717488645249,-434.22143985,0.00024,2]
[328525013,1717488645260,-3000.0,0.00024,2]
[328525015,1717488645271,-1047.78549032,0.00024082,2]
[328525017,1717488645281,-180.0,0.0002423,2]